[Event "44th Chess Olympiad Open 2022"]
[Site "Chennai"]
[Date "2022.07.29"]
[Round "1.59"]
[White "Murphy, Conor E"]
[Black "Ashraf, Ahmed Ramadan"]
[Result "1-0"]
[WhiteElo "2404"]
[BlackElo "1916"]
[Annotator "TA"]
[PlyCount "101"]
[EventDate "2022.??.??"]
[TimeControl "60"]

{[%evp 17,101,16,20,18,32,25,28,29,112,24,15,-4,0,0,0,0,0,0,0,0,2,0,22,-25,30,
39,46,-33,-37,-16,-23,-16,-12,-108,-96,-117,-69,-77,-86,-133,-104,-102,0,-130,
0,-108,0,-96,-66,-173,-183,-164,0,-95,-47,-93,0,0,8,8,45,33,32,15,438,427,420,
420,450,420,1302,1338,1496,1454,1656,1611,4931,2229,29986,29987,29991,29990,
29992,29989,29990,29990]} 1. Nf3 {[%emt 0:00:07]} Nf6 {[%emt 0:00:09]} 2. g3 {
[%emt 0:00:27]} d5 {[%emt 0:00:14]} 3. Bg2 {[%emt 0:00:31]} e6 {[%emt 0:00:03]}
4. c4 {[%emt 0:00:28]} Be7 {[%emt 0:01:02]} 5. O-O {[%emt 0:01:03]} O-O {
[%emt 0:00:05]} 6. d4 {[%emt 0:00:28]} b6 {[%emt 0:02:16]} 7. cxd5 {[%emt 0:00:
00]} exd5 {[%emt 0:00:23]} 8. Nc3 {[%emt 0:00:54]} Bb7 {[%emt 0:04:19]} 9. Bf4
{[%emt 0:09:56]} Nh5 {[%emt 0:07:39]} 10. Be3 {[%emt 0:08:13] E18: Queen's
Indian: Old Main Line (4 g3 Bb7 5 Bg2 Be7 6 0-0 0-0 7 Nc3).} f5 {[%emt 0:04:59]
} 11. Ne5 {[%emt 0:06:46] [#]} c6 $146 {[%emt 0:07:38]} ({Predecessor:} 11...
Nf6 12. Rc1 a6 13. Qb3 Kh8 14. Qc2 g6 15. Bh6 Kg8 16. Bxf8 Bxf8 17. Na4 Bd6 {
0-1 (56) Lasic,L (2114)-Balen,T (1976) Zagreb 2019}) 12. Rc1 {[%emt 0:03:48]
White has an edge.} Nd7 {[%emt 0:05:48] [#]} (12... Bd6 $11) 13. f4 {[%emt 0:
00:00]} (13. Nxc6 $1 $16 Bxc6 14. Nxd5 Bxd5 15. Bxd5+ Kh8 16. Bxa8 Qxa8 17. Rc7
) 13... Nhf6 {[%emt 0:01:28]} 14. h3 {[%emt 0:00:35]} Rc8 {[%emt 0:00:00]} 15.
Bf2 {[%emt 0:03:44]} Ne4 {[%emt 0:04:59]} 16. Nxe4 {[%emt 0:08:09]} fxe4 {
[%emt 0:10:31]} 17. Qa4 {[%emt 0:04:38][%csl Ya7,Yc6]} Nxe5 {[%emt 0:00:00]}
18. dxe5 {[%emt 0:02:31]} Ra8 {[%emt 0:09:30]} 19. Rfd1 {[%emt 0:01:37] Black
must now prevent Bxe4.} Qb8 {[%emt 0:04:17]} 20. b4 {[%emt 0:04:47]} (20. Rxc6
$2 Qe8 21. Rdc1 Bc5 22. R1xc5 bxc5 $19) (20. h4 $142) 20... b5 {[%emt 0:00:00]}
(20... a5 $142 21. b5 (21. Bxb6 axb4 22. Qc2 Ra3 $17) 21... c5) 21. Qb3 $11 {
[%emt 0:00:28]} a5 {[%emt 0:00:30]} 22. a3 {[%emt 0:09:23]} (22. bxa5 $14 Rxa5
23. Bxe4) 22... axb4 $15 {[%emt 0:01:49]} 23. axb4 {[%emt 0:00:02]} Ra4 {
[%emt 0:00:46]} 24. Bc5 {[%emt 0:01:58]} Bxc5+ {[%emt 0:00:07]} 25. bxc5 {
[%emt 0:04:06]} (25. Rxc5 $11 Qa7 26. Qc3 (26. Bxe4 $2 Ra3 $19)) 25... Qa7 {
[%emt 0:00:21]} 26. Kh2 {[%emt 0:01:27]} Ra3 {[%emt 0:00:53]} ({Better is} 
26... Qa5 $17 27. Qe3 Bc8) 27. Qb2 {[%emt 0:01:18]} Ra2 $36 {[%emt 0:00:32]
Black is on the roll.} 28. Qd4 {[%emt 0:04:23]} (28. Ra1 $142 Rxa1 29. Rxa1
Qxc5 30. h4) 28... Ra4 {[%emt 0:01:35]} 29. Qf2 {[%emt 0:01:32]} Ra2 {[%emt 0:
00:29]} 30. Qd4 $1 {[%emt 0:01:34]} Ra4 {[%emt 0:02:03]} 31. Qf2 {[%emt 0:01:
49]} Ra2 {[%emt 0:00:04]} (31... Bc8 $17 32. Rd2 Qe7) 32. Qe3 {[%emt 0:01:48]}
(32. Qd4 $1 $11 {was the only way to keep the balance.}) 32... Qa5 {[%emt 0:01:
42]} 33. g4 {[%emt 0:00:52]} ({White should play} 33. f5 $15) 33... Ra3 {
[%emt 0:00:15]} 34. Qf2 {[%emt 0:00:18]} Ra2 $2 {[%emt 0:01:28]} (34... Ba6 $19
{Strongly threatening ...b4.} 35. Rb1 Qc3) 35. f5 {[%emt 0:00:48]} (35. Qe3 $1
$11 {keeps the balance.}) 35... b4 {[%emt 0:00:40]} (35... Qc7 $17 36. Qg3 Rxe2
) 36. Qg3 {[%emt 0:01:02] [#]} Rxe2 {[%emt 0:02:47]} (36... Ba6 $1 $17 {
[%cal Ra6e2]} 37. e3 Be2) 37. e6 $11 {[%emt 0:00:03] aiming for Qd6.} b3 {
[%emt 0:02:03]} 38. Qxb3 {[%emt 0:00:39]} Qc7+ {[%emt 0:02:39]} (38... h5 $5 {
[%cal Rh5g4]}) 39. Qg3 {[%emt 0:00:05] Active counter play!} Qxg3+ {[%emt 0:01:
31]} 40. Kxg3 {[%emt 0:00:03] Threatens to win with Rb1.} Ra8 $2 {[%emt 0:03:
51]} (40... Bc8 $11 {and Black has nothing to worry.}) 41. Rb1 {[%emt 0:07:31]}
Bc8 {[%emt 0:10:07]} 42. Rb6 {[%emt 0:03:21]} g5 {[%emt 0:01:01]} (42... Ra3+
$2 43. Kh4 Rxg2 44. Rb8 $18) 43. Rxc6 {[%emt 0:00:00] Rc7 is the strong threat.
} Bb7 {[%emt 0:02:33]} (43... Rb2 $142 44. Rd6 (44. Rxd5 Bb7 $11) (44. Bxe4 $2
dxe4 45. Rxc8+ Rxc8 $19) 44... Kf8 45. R6xd5 Ra3+ 46. Kh2 Ke7) 44. Rc7 $18 {
[%emt 0:00:28]} Raa2 {[%emt 0:00:48] [#]} 45. Rg1 $1 {[%emt 0:00:53]} ({
Worse is} 45. Bxe4 Rxe4 46. Rd3 Rb2 $11) 45... Reb2 {[%emt 0:03:02]} 46. f6 {
[%emt 0:02:36][%cal Yf5f6,Yf6f7] White wants to mate with Rg7+.} Rb3+ {[%emt 0:
02:05]} 47. Kh2 {[%emt 0:00:09] Intending Rg7+ and mate.} Rf2 {[%emt 0:02:06]}
48. Rf1 {[%emt 0:02:44] White mates.} e3 {[%emt 0:00:22]} 49. Rxf2 {[%emt 0:01:
23]} exf2 {[%emt 0:00:09]} 50. Rd7 {[%emt 0:00:49][%cal Rd7d8]} h6 {[%emt 0:00:
55]} 51. f7+ {[%emt 0:00:33] What a bad dream for Black. Weighted Error Value:
White=0.23 (precise) /Black=0.61} 1-0

[Event "44th Chess Olympiad Open 2022"]
[Site "Chennai"]
[Date "2022.07.29"]
[Round "1.59"]
[White "Kanyamarala, Tarun"]
[Black "Mujahid Bin Yazeed"]
[Result "1-0"]
[WhiteElo "2379"]
[BlackElo "1418"]
[Annotator "TA"]
[PlyCount "75"]
[EventDate "2022.??.??"]
[TimeControl "60"]

{[%evp 9,75,29,80,58,58,49,59,60,70,57,66,56,119,126,138,95,88,53,92,68,77,52,
87,-33,35,42,47,44,100,81,138,139,210,210,181,105,346,343,528,513,543,530,509,
286,883,861,29976,778,727,496,3214,716,3102,3060,2750,2002,2712,2528,29990,
29989,29989,29990,29990,29989,29994,29995,29997,29998]} 1. f4 {[%emt 0:00:08]}
f5 {[%emt 0:00:40]} 2. Nf3 {[%emt 0:00:11]} Nf6 {[%emt 0:00:36]} 3. g3 {
[%emt 0:00:11]} d5 {[%emt 0:02:57]} 4. Bg2 {[%emt 0:01:09] [#]} Be6 $146 {
[%emt 0:02:49]} ({Predecessor:} 4... e6 5. b3 c5 6. Bb2 Nc6 7. e3 Bd6 8. O-O
O-O 9. Na3 a6 10. c4 Rb8 11. d4 b5 12. cxd5 Nxd5 {½-½ (41) Celik,C (1546)
-Ozsakallioglu,A (1865) Antalya 2018}) 5. O-O {[%emt 0:04:39]} Qc8 {[%emt 0:00:
00]} (5... Bf7 $11) 6. b3 {[%emt 0:05:45][%cal Yc2c4] A02: Bird's Opening.} Bf7
{[%emt 0:03:16]} 7. c4 {[%emt 0:01:52]} c6 {[%emt 0:04:57]} 8. Bb2 {[%emt 0:00:
00] White is slightly better.} Nbd7 {[%emt 0:05:49]} 9. cxd5 {[%emt 0:22:37]
White is more active.} cxd5 {[%emt 0:00:25]} 10. Nc3 {[%emt 0:00:24]} Qc5+ {
[%emt 0:06:31]} (10... e6 $14) 11. Kh1 $16 {[%emt 0:06:43]} e6 {[%emt 0:08:42]}
12. Rc1 {[%emt 0:00:35]} Qa5 {[%emt 0:00:20]} 13. Nd4 {[%emt 0:12:20][%cal
Yf3d4,Yd4c2,Yc2e3,Ye3c4,Yc4d6] [#] Hoping for Ncb5.} a6 {[%emt 0:00:00]
Against Ncb5} 14. d3 {[%emt 0:02:31]} Bc5 {[%emt 0:01:55]} 15. Nc2 {[%emt 0:04:
28]} (15. Na4 $5 {[%cal Ra4c5]}) 15... h5 {[%emt 0:06:25]} 16. h4 {[%emt 0:04:
29]} (16. e4 $16) 16... Be7 {[%emt 0:03:47]} (16... O-O $15) 17. e4 $14 {
[%emt 0:03:13]} O-O {[%emt 0:13:16]} 18. Ne3 {[%emt 0:05:39]} dxe4 {[%emt 0:04:
31]} ({Black should try} 18... Ng4 $14 19. Qe1 Nxe3 20. Qxe3 Rae8) 19. dxe4 $16
{[%emt 0:02:23] [#] Threatens to win with e5.} Bc5 {[%emt 0:02:17]} (19... Nc5
$142) 20. Nc4 {[%emt 0:02:19]} Qc7 {[%emt 0:00:27]} (20... Qd8 $16 21. Nd6 Bxd6
) 21. Na4 $18 {[%emt 0:01:55] aiming for Ne5.} Rad8 {[%emt 0:02:07]} 22. Qe2 {
[%emt 0:03:45]} ({Better is} 22. e5 $18 Ng4 23. Qe2) 22... Ba7 $2 {[%emt 0:02:
43] This move loses the game for Black.} (22... b5 $16) 23. e5 {[%emt 0:02:30]}
Nd5 {[%emt 0:07:18]} (23... Ng4 $142 24. Ba3 b5) 24. Nd6 {[%emt 0:02:41]} Qb8 {
[%emt 0:05:02]} 25. Bxd5 {[%emt 0:00:16]} exd5 {[%emt 0:00:00]} 26. Nxf5 {
[%emt 0:00:19] Pair of Knights!} b5 $2 {[%emt 0:01:29]} (26... Rfe8 27. Ba3 Nf6
28. Ne7+ Rxe7) 27. e6 {[%emt 0:00:55] And now Ne7+ would win.} bxa4 {[%emt 0:
00:47]} 28. exf7+ {[%emt 0:01:35]} (28. Ne7+ $142 Kh7 29. exf7 Qd6 30. Rc6 Qxc6
31. Nxc6 Nf6 32. Nxd8 d4 33. Qe7) 28... Rxf7 {[%emt 0:00:13]} 29. Ne7+ {
[%emt 0:00:09]} Kf8 {[%emt 0:01:13]} (29... Rxe7 $142 30. Qxe7 d4) 30. Ng6+ {
[%emt 0:00:11]} Kg8 {[%emt 0:00:16]} 31. Qxh5 {[%emt 0:00:00][%csl Gg6][%cal
Rh5h8]} Rf6 {[%emt 0:00:46]} 32. Ne7+ {[%emt 0:01:44]} Kf8 {[%emt 0:00:24]} 33.
Nc6 {[%emt 0:00:21] Intending Qh8+ and mate.} Qb5 {[%emt 0:03:40]} 34. Bxf6 {
[%emt 0:00:42] White mates.} Nxf6 {[%emt 0:00:24]} 35. Qh8+ {[%emt 0:00:13]}
Ng8 {[%emt 0:00:21]} 36. Nxd8 {[%emt 0:00:15]} Be3 {[%emt 0:00:12]} 37. Ne6+ {
[%emt 0:00:08]} Kf7 {[%emt 0:00:14]} 38. Qxg7+ {[%emt 0:00:18] Weighted Error
Value: White=0.40/Black=0.84} 1-0

[Event "44th Chess Olympiad Open 2022"]
[Site "Chennai"]
[Date "2022.07.29"]
[Round "1.59"]
[White "Fuad, Ahmed Mufleh"]
[Black "O`Gorman, Tom"]
[Result "0-1"]
[WhiteElo "2086"]
[BlackElo "2401"]
[Annotator "TA"]
[PlyCount "44"]
[EventDate "2022.??.??"]
[TimeControl "60"]

{[%evp 11,44,12,0,-78,-70,-73,-15,-53,6,-41,-47,-91,-85,-85,-62,-127,-114,-129,
-117,-121,-66,-92,-76,-75,-79,-116,-134,-361,-289,-425,-431,-464,-456,-590,
-539]} 1. d4 {[%emt 0:00:05]} d5 {[%emt 0:00:17]} 2. c4 {[%emt 0:00:08]} e6 {
[%emt 0:00:07]} 3. Nc3 {[%emt 0:00:11]} Nf6 {[%emt 0:00:07]} 4. Bg5 {[%emt 0:
00:00]} Be7 {[%emt 0:00:08]} 5. Nf3 {[%emt 0:00:22]} O-O {[%emt 0:00:20]} 6.
Bxf6 {[%emt 0:01:46]} Bxf6 {[%emt 0:00:09]} 7. e4 {[%emt 0:00:43] D53: Queen's
Gambit Declined: 4 Bg5 Be7: Early deviations.} (7. e3 $11) 7... dxe4 $17 {
[%emt 0:00:42]} 8. Nxe4 {[%emt 0:00:14]} Be7 {[%emt 0:01:50]} (8... Nc6 $17 {
[%cal Rf6d4]} 9. Nxf6+ Qxf6) 9. Qb3 {[%emt 0:00:44] [#] The position is equal.}
a5 $146 {[%emt 0:02:34]} ({Black should play} 9... c5 $15 10. d5 (10. Nxc5 Qa5+
11. Qc3 Qxc3+ 12. bxc3 Bxc5 $15) (10. dxc5 Na6 $15) 10... f5) ({Predecessor:} 
9... b6 10. O-O-O Nd7 11. Bd3 a5 12. a3 c6 13. h4 h6 14. g4 Qc7 15. Bc2 b5 {
1-0 (40) Palek,M (2233)-Novacek,K (2058) Czech Republic 2010}) 10. O-O-O {
[%emt 0:03:34]} (10. Be2 $11) 10... a4 $15 {[%emt 0:00:49][%cal Ya5a4,Ya4a3]}
11. Qc2 {[%emt 0:01:46]} a3 {[%emt 0:00:44]} 12. b3 {[%emt 0:01:20]} Na6 {
[%emt 0:02:14]} 13. h4 {[%emt 0:02:16]} (13. c5 $15) 13... Nb4 {[%emt 0:00:00]}
14. Qd2 {[%emt 0:03:03]} b6 {[%emt 0:02:48]} 15. Bd3 {[%emt 0:06:50]} c5 {
[%emt 0:04:45]} (15... f5 $17 16. Nc3 Bb7) 16. dxc5 {[%emt 0:06:37]} bxc5 {
[%emt 0:03:19] [#] And now ...f5 would win.} 17. Bb1 {[%emt 0:15:52]} Qc7 $36 {
[%emt 0:02:04] ...f5 is the strong threat. Keeping White busy.} 18. Qe3 {
[%emt 0:07:48]} f5 {[%emt 0:01:58]} 19. Neg5 {[%emt 0:04:50] This move loses
the game for White.} (19. Nc3 $17) 19... Bf6 $19 {[%emt 0:01:13] Hoping for ...
Bb2+.} 20. Rd2 {[%emt 0:07:07]} (20. Rhe1 {was necessary.} Bb2+ 21. Kd2) 20...
e5 {[%emt 0:03:03][%cal Ye6e5,Ye5e4] Threatens to win with ... e4. Black is
clearly winning.} 21. Kd1 {[%emt 0:09:33]} Ra6 {[%emt 0:04:48]} 22. Ke2 {
[%emt 0:03:56]} e4 {[%emt 0:01:38] Weighted Error Value: White=0.54/ Black=0.
16 (very precise)} 0-1

[Event "44th Chess Olympiad Open 2022"]
[Site "Chennai"]
[Date "2022.07.29"]
[Round "1.59"]
[White "Muhammed, Shuaau"]
[Black "Baburin, Alexander"]
[Result "0-1"]
[WhiteElo "1987"]
[BlackElo "2400"]
[Annotator "ChessBase"]
[PlyCount "75"]
[EventDate "2022.??.??"]
[TimeControl "60"]

1. e4 {[%emt 0:00:04]} Nf6 {[%emt 0:00:07]} 2. e5 {[%emt 0:00:14]} Nd5 {
[%emt 0:00:06]} 3. d4 {[%emt 0:00:04]} d6 {[%emt 0:00:04]} 4. Nf3 {[%emt 0:00:
00]} g6 {[%emt 0:01:12]} 5. g3 {[%emt 0:04:10]} Bg7 {[%emt 0:03:11]} 6. Bg2 {
[%emt 0:01:34]} O-O {[%emt 0:00:08]} 7. O-O {[%emt 0:00:23]} dxe5 {[%emt 0:00:
00]} 8. Nxe5 {[%emt 0:05:12]} c6 {[%emt 0:02:59]} 9. Qe2 {[%emt 0:04:30]} Nd7 {
[%emt 0:02:38]} 10. Nf3 {[%emt 0:06:46]} b5 {[%emt 0:03:18]} 11. a4 {[%emt 0:
00:00]} b4 {[%emt 0:02:19]} 12. c4 {[%emt 0:06:13]} bxc3 {[%emt 0:01:45]} 13.
Nxc3 {[%emt 0:04:10]} a5 {[%emt 0:05:31]} 14. Rd1 {[%emt 0:10:54]} Ba6 {
[%emt 0:04:29]} 15. Qc2 {[%emt 0:03:55]} Qb6 {[%emt 0:12:52]} 16. Ne5 {[%emt 0:
00:00]} Nxe5 {[%emt 0:02:40]} 17. dxe5 {[%emt 0:02:54]} e6 {[%emt 0:04:43]} 18.
Nxd5 {[%emt 0:03:16]} cxd5 {[%emt 0:00:08]} 19. Be3 {[%emt 0:00:03]} Qb8 {
[%emt 0:00:32]} 20. f4 {[%emt 0:00:41]} Rc8 {[%emt 0:00:26]} 21. Qd2 {[%emt 0:
00:00]} Bf8 {[%emt 0:00:40]} 22. Rdc1 {[%emt 0:04:11]} Qb3 {[%emt 0:04:22]} 23.
Rc3 {[%emt 0:02:54]} Rxc3 {[%emt 0:01:14]} 24. Qxc3 {[%emt 0:00:18]} Qxc3 {
[%emt 0:04:46]} 25. bxc3 {[%emt 0:00:02]} Rc8 {[%emt 0:00:43]} 26. Bb6 {
[%emt 0:05:01]} Bc5+ {[%emt 0:03:15]} 27. Bxc5 {[%emt 0:00:02]} Rxc5 {[%emt 0:
00:00]} 28. Ra3 {[%emt 0:00:31]} Bc4 {[%emt 0:01:11]} 29. Bf1 {[%emt 0:03:16]}
Kg7 {[%emt 0:01:00]} 30. Bxc4 {[%emt 0:01:09]} Rxc4 {[%emt 0:00:07]} 31. Kf2 {
[%emt 0:00:24]} h6 {[%emt 0:03:38]} 32. h4 {[%emt 0:02:35]} g5 {[%emt 0:00:12]}
33. hxg5 {[%emt 0:00:04]} hxg5 {[%emt 0:00:03]} 34. Kf3 {[%emt 0:03:36]} Kg6 {
[%emt 0:00:15]} 35. Rb3 {[%emt 0:01:20]} gxf4 {[%emt 0:01:01]} 36. Rb5 {
[%emt 0:00:42]} Rxc3+ {[%emt 0:02:25]} 37. Kxf4 {[%emt 0:00:05]} Rc4+ {[%emt 0:
00:00]} 38. Ke3 {[%emt 0:00:52]} 0-1

[Event "44th Chess Olympiad Open 2022"]
[Site "Chennai"]
[Date "2022.07.29"]
[Round "1.60"]
[White "Ziska, Helgi Dam"]
[Black "Volpinari, Danilo"]
[Result "1-0"]
[WhiteElo "2549"]
[BlackElo "1955"]
[Annotator "TA"]
[PlyCount "39"]
[EventDate "2022.??.??"]
[TimeControl "60"]

{[%evp 13,39,23,34,32,71,64,75,43,125,129,118,115,151,151,117,121,197,227,471,
156,350,354,1853,1530,1447,1428,29993,29994]} 1. e4 {[%emt 0:00:11]} c5 {
[%emt 0:00:19]} 2. Nf3 {[%emt 0:00:51]} g6 {[%emt 0:00:24]} 3. c3 {[%emt 0:00:
00]} Bg7 {[%emt 0:02:52]} 4. d4 {[%emt 0:00:33]} cxd4 {[%emt 0:00:43]} 5. cxd4
{[%emt 0:00:07]} d5 {[%emt 0:00:24]} 6. e5 {[%emt 0:00:13]} Nc6 {[%emt 0:03:19]
} 7. h3 {[%emt 0:08:04] 7.Bb5 is becoming the main line.} Nh6 {[%emt 0:05:43]}
8. Bb5 {[%emt 0:00:32] B27: Sicilian: 2 Nf3, unusual Black 2nd moves.} Qb6 {
[%emt 0:02:34]} 9. Nc3 {[%emt 0:02:01][%cal Yc3d5]} O-O {[%emt 0:02:36] [#]}
10. Bf4 $146 {[%emt 0:08:29] White is better.} ({Predecessor:} 10. O-O Be6 11.
Re1 Rfe8 12. Bf1 Qd8 13. Bf4 f6 14. Nb5 fxe5 15. Nxe5 Nxe5 16. dxe5 a6 17. Nd4
Qd7 18. g4 Rac8 19. Bg2 Red8 20. Qb3 Rc4 21. Rad1 Rxd4 22. Rxd4 Nf7 23. Red1 {
1-0 (23) Istratescu,A (2641)-Serafimov,T (2425) Vaujany 2012}) 10... e6 {
[%emt 0:19:46]} (10... Nf5 $14) 11. Qd2 $16 {[%emt 0:04:10] [#] Bxc6 is the
strong threat.} Nf5 {[%emt 0:01:10][%cal Rc6d4]} 12. Bxc6 {[%emt 0:01:17]} Qxc6
{[%emt 0:03:15]} 13. g4 $36 {[%emt 0:03:47] White is on the roll.} Ne7 {
[%emt 0:00:11]} 14. h4 {[%emt 0:00:12][%cal Yh3h4,Yh4h5] White is more active.}
Bd7 {[%emt 0:04:35]} (14... f5 $16) 15. h5 {[%emt 0:00:52] Black must now
prevent Bh6.} Rac8 $2 {[%emt 0:03:35]} (15... Be8 {keeps fighting.} 16. Bh6 f5)
16. Bg5 $2 {[%emt 0:06:05]} (16. Bh6 $18 {is the precise move to win.}) 16...
Rfe8 $2 {[%emt 0:20:57] This costs Black the game.} (16... f6 $16 {might work
better.} 17. Bh6 Bh8) 17. Bf6 $18 {[%emt 0:01:17]} Bf8 {[%emt 0:09:17]} (17...
Bxf6 18. exf6 e5) 18. hxg6 {[%emt 0:02:22]} fxg6 {[%emt 0:05:26]} 19. Qf4 {
[%emt 0:02:12][%cal Yh1h7] Intending Rxh7! and mate.} Qc4 {[%emt 0:06:27] [#]}
20. Rxh7 $3 {[%emt 0:00:47] Weighted Error Value: White=0.37/Black=1.27} 1-0

[Event "44th Chess Olympiad Open 2022"]
[Site "Chennai"]
[Date "2022.07.29"]
[Round "1.60"]
[White "Egilstoft, Rogvi"]
[Black "Herrera, Adrian"]
[Result "1-0"]
[WhiteElo "2284"]
[BlackElo "1563"]
[Annotator "ChessBase"]
[PlyCount "59"]
[EventDate "2022.??.??"]
[TimeControl "60"]

1. e4 {[%emt 0:00:09]} e5 {[%emt 0:00:13]} 2. Nf3 {[%emt 0:00:21]} Nc6 {
[%emt 0:00:22]} 3. Bb5 {[%emt 0:00:33]} a6 {[%emt 0:00:37]} 4. Ba4 {[%emt 0:00:
00]} b5 {[%emt 0:00:49]} 5. Bb3 {[%emt 0:00:08]} d6 {[%emt 0:00:30]} 6. c3 {
[%emt 0:03:59]} Be7 {[%emt 0:01:47]} 7. O-O {[%emt 0:02:38]} Nf6 {[%emt 0:00:
00]} 8. Qe2 {[%emt 0:02:00]} Bg4 {[%emt 0:03:38]} 9. Rd1 {[%emt 0:00:57]} O-O {
[%emt 0:02:06]} 10. d3 {[%emt 0:00:50]} Na5 {[%emt 0:03:08]} 11. Bc2 {[%emt 0:
00:00]} c5 {[%emt 0:01:13]} 12. Nbd2 {[%emt 0:02:08]} Qc7 {[%emt 0:02:16]} 13.
h3 {[%emt 0:02:44]} Bh5 {[%emt 0:02:17]} 14. Nf1 {[%emt 0:03:08]} Nc6 {[%emt 0:
00:00]} 15. Bg5 {[%emt 0:10:51]} b4 {[%emt 0:12:50]} 16. Bxf6 {[%emt 0:08:09]}
Bxf6 {[%emt 0:00:23]} 17. Ne3 {[%emt 0:00:39]} Ne7 {[%emt 0:01:29]} 18. g4 {
[%emt 0:01:11]} Bg6 {[%emt 0:00:22]} 19. g5 {[%emt 0:03:38]} Bxg5 {[%emt 0:00:
00]} 20. Nxg5 {[%emt 0:00:14]} h6 {[%emt 0:01:12]} 21. Nf3 {[%emt 0:01:25]} Bh5
{[%emt 0:03:06]} 22. Ng4 {[%emt 0:16:35]} f5 {[%emt 0:11:30]} 23. exf5 {
[%emt 0:02:44]} Rxf5 {[%emt 0:02:39]} 24. d4 {[%emt 0:01:47]} Rf4 {[%emt 0:00:
00]} 25. Nfh2 {[%emt 0:04:38]} cxd4 {[%emt 0:06:54]} 26. cxd4 {[%emt 0:05:35]}
Raf8 {[%emt 0:01:27]} 27. Rac1 {[%emt 0:07:39]} Qb6 {[%emt 0:00:28]} 28. Nxh6+
{[%emt 0:01:49]} gxh6 {[%emt 0:01:50]} 29. Qxh5 {[%emt 0:00:09]} Kg7 {[%emt 0:
00:00]} 30. Ng4 {[%emt 0:02:38]} 1-0